[Event "Championnat d'Europe de Blitz"]
[Date "2024.12.09"]
[White "Korobov, Anton"]
[Black "Pantsulaia, Levan"]
[WhiteElo "2629"]
[BlackElo "2522"]
[Round "10.3"]
[Result "1/2-1/2"]
[TimeControl "180+2"]

1. d4 {[%emt 00:19:36] [%clk 00:03:03]} c5 {[%clk 00:03:04]} 2. d5 {[%emt
00:00:02] [%clk 00:03:03]} g6 {[%clk 00:03:05]} 3. e4 {[%emt 00:00:02] [%clk
00:03:03]} Bg7 {[%emt 00:00:01] [%clk 00:03:06]} 4. Nf3 {[%emt 00:00:02] [%clk
00:03:03]} d6 {[%clk 00:03:08]} 5. Nc3 {[%emt 00:00:02] [%clk 00:03:03]} Nf6
{[%emt 00:00:01] [%clk 00:03:08]} 6. Bb5+ {[%emt 00:00:02] [%clk 00:03:03]} Bd7
{[%clk 00:03:09]} 7. a4 {[%emt 00:00:01] [%clk 00:03:04]} Bxb5 {[%clk 00:03:11]}
8. axb5 {[%emt 00:00:01] [%clk 00:03:04]} O-O {[%emt 00:00:02] [%clk 00:03:11]}
9. O-O {[%emt 00:00:01] [%clk 00:03:04]} Nbd7 {[%clk 00:03:12]} 10. Re1 {[%emt
00:00:07] [%clk 00:02:59]} Ne8 {[%emt 00:00:02] [%clk 00:03:13]} 11. Bf4 {[%emt
00:00:04] [%clk 00:02:56]} Nc7 {[%emt 00:00:01] [%clk 00:03:14]} 12. Qd2 {[%emt
00:00:19] [%clk 00:02:39]} Nb6 {[%emt 00:00:03] [%clk 00:03:15]} 13. Bh6 {[%emt
00:00:06] [%clk 00:02:35]} Nc4 {[%emt 00:00:24] [%clk 00:02:53]} 14. Qc1 {[%emt
00:00:03] [%clk 00:02:34]} Bxh6 {[%emt 00:00:02] [%clk 00:02:53]} 15. Qxh6
{[%emt 00:00:02] [%clk 00:02:34]} f6 {[%emt 00:00:01] [%clk 00:02:55]} 16. Nd2
{[%emt 00:00:40] [%clk 00:01:55]} Ne5 {[%emt 00:00:11]} 17. f4 {[%clk 00:01:54]}
Nf7 {[%emt 00:00:04] [%clk 00:02:47]} 18. Qh3 {[%emt 00:00:01] [%clk 00:01:54]}
Qe8 {[%emt 00:00:15] [%clk 00:02:35]} 19. Qd3 {[%emt 00:00:02] [%clk 00:01:54]}
Qd7 {[%emt 00:00:06] [%clk 00:02:32]} 20. Ra5 {[%emt 00:00:11] [%clk 00:01:45]}
a6 {[%emt 00:00:06] [%clk 00:02:28]} 21. Rea1 {[%emt 00:00:09] [%clk 00:01:37]}
axb5 {[%emt 00:00:04] [%clk 00:02:26]} 22. Rxa8 {[%emt 00:00:02] [%clk
00:01:37]} Rxa8 {[%emt 00:00:01] [%clk 00:02:28]} 23. Rxa8+ {[%emt 00:00:01]
[%clk 00:01:37]} Nxa8 {[%emt 00:00:02] [%clk 00:02:29]} 24. Qxb5 {[%clk
00:01:38]} Qxb5 {[%emt 00:00:02] [%clk 00:02:28]} 25. Nxb5 {[%emt 00:00:02]
[%clk 00:01:38]} Nb6 {[%emt 00:00:10] [%clk 00:02:20]} 26. Kf2 {[%emt 00:00:01]
[%clk 00:01:39]} g5 {[%emt 00:00:33] [%clk 00:01:50]} 27. g3 {[%emt 00:00:05]
[%clk 00:01:35]} gxf4 {[%emt 00:00:01] [%clk 00:01:51]} 28. gxf4 {[%clk
00:01:36]} f5 {[%emt 00:00:01] [%clk 00:01:52]} 29. Ke3 {[%emt 00:00:17] [%clk
00:01:21]} Kg7 {[%emt 00:00:03] [%clk 00:01:51]} 30. c4 {[%emt 00:00:03] [%clk
00:01:20]} fxe4 {[%emt 00:00:08] [%clk 00:01:45]} 31. Kxe4 {[%emt 00:00:06]
[%clk 00:01:15]} Nh6 {[%emt 00:00:29] [%clk 00:01:19]} 32. b3 {[%emt 00:00:09]
[%clk 00:01:08]} Nd7 {[%emt 00:00:09] [%clk 00:01:12]} 33. Kf3 {[%emt 00:00:19]
[%clk 00:00:51]} Nf5 {[%emt 00:00:02] [%clk 00:01:12]} 34. Ne4 {[%emt 00:00:03]
[%clk 00:00:50]} h6 {[%emt 00:00:18] [%clk 00:00:55]} 35. Ng3 {[%emt 00:00:23]
[%clk 00:00:30]} Kg6 {[%emt 00:00:28] [%clk 00:00:30]} 36. Nxf5 {[%emt 00:00:05]
[%clk 00:00:26]} Kxf5 {[%emt 00:00:02] [%clk 00:00:31]} 37. Nc7 {[%clk
00:00:27]} Nf8 {[%emt 00:00:12] [%clk 00:00:20]} 38. h3 {[%emt 00:00:06] [%clk
00:00:23]} h5 {[%emt 00:00:01] [%clk 00:00:20]} 39. Ke3 {[%emt 00:00:02] [%clk
00:00:23]} Kf6 {[%emt 00:00:16] [%clk 00:00:06]} 40. Ke4 {[%emt 00:00:02] [%clk
00:00:24]} Kg6 {[%clk 00:00:08]} 41. h4 {[%emt 00:00:05] [%clk 00:00:21]} Kf6
{[%emt 00:00:02] [%clk 00:00:08]} 42. f5 {[%clk 00:00:22]} Kf7 {[%emt 00:00:01]
[%clk 00:00:09]} 43. Ne6 {[%emt 00:00:05] [%clk 00:00:19]} Nd7 {[%emt 00:00:07]
[%clk 00:00:04]} 44. Nd8+ {[%emt 00:00:03] [%clk 00:00:19]} Kf6 {[%emt 00:00:01]
[%clk 00:00:05]} 45. Nxb7 {[%emt 00:00:01] [%clk 00:00:19]} Ne5 {[%clk
00:00:06]} 46. Na5 {[%emt 00:00:04] [%clk 00:00:17]} Ng4 {[%emt 00:00:02] [%clk
00:00:06]} 47. Nc6 {[%emt 00:00:08] [%clk 00:00:11]} Nh6 {[%emt 00:00:03] [%clk
00:00:05]} 48. Nb8 {[%emt 00:00:08] [%clk 00:00:05]} Nxf5 {[%clk 00:00:06]} 49.
Nd7+ {[%emt 00:00:01] [%clk 00:00:06]} Kg6 {[%emt 00:00:01] [%clk 00:00:07]} 50.
Nf8+ {[%clk 00:00:07]} Kf6 {[%emt 00:00:01] [%clk 00:00:09]} 51. Nd7+ {[%emt
00:00:01] [%clk 00:00:07]} Kg6 {[%clk 00:00:10]} 52. Nf8+ {[%emt 00:00:02] [%clk
00:00:00]} 1/2-1/2

[Site "Europe Echecs"]

[Event "Championnat d'Europe de Blitz"]
[Date "2024.12.09"]
[White "Jobava, Baadur"]
[Black "Baidetskyi, Valentin"]
[WhiteElo "2578"]
[BlackElo "2519"]
[Round "10.4"]
[Result "1-0"]
[TimeControl "180+2"]

1. c4 {[%clk 00:03:02]} e5 {[%emt 00:00:06] [%clk 00:02:59]} 2. b3 {[%clk
00:03:02]} d6 {[%emt 00:00:02] [%clk 00:03:00]} 3. Bb2 {[%emt 00:00:01] [%clk
00:03:03]} Be7 {[%emt 00:00:07] [%clk 00:02:55]} 4. g3 {[%emt 00:00:03] [%clk
00:03:02]} f5 {[%emt 00:00:01] [%clk 00:02:55]} 5. Bg2 {[%emt 00:00:02] [%clk
00:03:02]} Nf6 {[%emt 00:00:02] [%clk 00:02:56]} 6. Nc3 {[%emt 00:00:02] [%clk
00:03:02]} O-O {[%emt 00:00:04] [%clk 00:02:54]} 7. e3 {[%emt 00:00:06] [%clk
00:02:58]} c6 {[%emt 00:00:04] [%clk 00:02:52]} 8. Nge2 {[%emt 00:00:01] [%clk
00:02:59]} d5 {[%emt 00:00:08] [%clk 00:02:45]} 9. O-O {[%emt 00:00:11] [%clk
00:02:50]} Be6 {[%emt 00:00:07] [%clk 00:02:41]} 10. d3 {[%emt 00:00:07] [%clk
00:02:45]} Na6 {[%emt 00:00:18] [%clk 00:02:25]} 11. cxd5 {[%emt 00:00:31]} cxd5
{[%emt 00:00:01] [%clk 00:02:22]} 12. Nb5 {[%emt 00:00:03] [%clk 00:02:18]} Qb6
{[%emt 00:00:30] [%clk 00:01:55]} 13. a4 {[%emt 00:00:03] [%clk 00:02:17]} Nd7
{[%emt 00:00:11] [%clk 00:01:45]} 14. Nec3 {[%emt 00:00:06] [%clk 00:02:13]} Nb4
{[%emt 00:00:04] [%clk 00:01:43]} 15. Ba3 {[%emt 00:00:06] [%clk 00:02:10]} Nf6
{[%emt 00:00:10] [%clk 00:01:35]} 16. Qd2 {[%emt 00:00:29] [%clk 00:01:43]} a6
{[%emt 00:00:17] [%clk 00:01:20]} 17. Ne2 {[%emt 00:00:02] [%clk 00:01:43]} Nc6
{[%emt 00:00:20] [%clk 00:01:02]} 18. Bxe7 {[%emt 00:00:01] [%clk 00:01:43]}
Nxe7 {[%emt 00:00:02] [%clk 00:01:03]} 19. Nbc3 {[%emt 00:00:01] [%clk
00:01:44]} Rac8 {[%emt 00:00:15] [%clk 00:00:50]} 20. a5 {[%emt 00:00:02] [%clk
00:01:43]} Qb4 {[%emt 00:00:11] [%clk 00:00:40]} 21. Qb2 {[%emt 00:00:15] [%clk
00:01:32]} Rc7 {[%emt 00:00:12] [%clk 00:00:30]} 22. Na4 {[%emt 00:00:14] [%clk
00:01:20]} Qd6 {[%emt 00:00:01] [%clk 00:00:30]} 23. d4 {[%emt 00:00:03] [%clk
00:01:19]} e4 {[%emt 00:00:05] [%clk 00:00:27]} 24. Nc5 {[%emt 00:00:01] [%clk
00:01:20]} Bd7 {[%emt 00:00:14] [%clk 00:00:15]} 25. Rfc1 {[%emt 00:00:02] [%clk
00:01:20]} Rfc8 {[%emt 00:00:02] [%clk 00:00:15]} 26. Rc3 {[%emt 00:00:09] [%clk
00:01:13]} Bb5 {[%emt 00:00:03] [%clk 00:00:14]} 27. Nf4 {[%emt 00:00:04] [%clk
00:01:11]} Bd7 {[%emt 00:00:07] [%clk 00:00:09]} 28. h4 {[%emt 00:00:15] [%clk
00:00:58]} g6 {[%emt 00:00:02] [%clk 00:00:10]} 29. Rac1 {[%emt 00:00:01] [%clk
00:00:58]} h6 {[%emt 00:00:04] [%clk 00:00:09]} 30. b4 {[%emt 00:00:32] [%clk
00:00:28]} g5 {[%emt 00:00:02] [%clk 00:00:08]} 31. hxg5 {[%emt 00:00:01] [%clk
00:00:29]} hxg5 {[%emt 00:00:01] [%clk 00:00:09]} 32. Nxd7 {[%emt 00:00:06]
[%clk 00:00:25]} Nxd7 {[%emt 00:00:04] [%clk 00:00:07]} 33. Rxc7 {[%emt
00:00:03] [%clk 00:00:24]} Rxc7 {[%emt 00:00:02] [%clk 00:00:07]} 34. Rxc7
{[%emt 00:00:01] [%clk 00:00:25]} Qxc7 {[%emt 00:00:02] [%clk 00:00:08]} 35. Ne6
{[%clk 00:00:26]} Qc4 {[%emt 00:00:07] [%clk 00:00:03]} 36. Bf1 {[%emt 00:00:04]
[%clk 00:00:24]} Qc6 {[%emt 00:00:01] [%clk 00:00:05]} 37. Nxg5 {[%emt 00:00:01]
[%clk 00:00:24]} Qf6 {[%emt 00:00:04] [%clk 00:00:03]} 38. Nh3 {[%emt 00:00:02]
[%clk 00:00:24]} Ng6 {[%clk 00:00:04]} 39. b5 {[%emt 00:00:04] [%clk 00:00:23]}
Kg7 {[%emt 00:00:03] [%clk 00:00:03]} 40. bxa6 {[%emt 00:00:02] [%clk 00:00:23]}
1-0

[Site "Europe Echecs"]

[Event "Championnat d'Europe de Blitz"]
[Date "2024.12.09"]
[White "Pichot, Alan"]
[Black "Santos Latasa, Jaime"]
[WhiteElo "2637"]
[BlackElo "2628"]
[Round "10.5"]
[Result "1/2-1/2"]
[TimeControl "180+2"]

1. e4 {[%clk 00:03:02]} e5 {[%emt 00:00:01] [%clk 00:03:04]} 2. Nf3 {[%emt
00:00:02] [%clk 00:03:03]} Nc6 {[%emt 00:00:01] [%clk 00:03:05]} 3. Bc4 {[%emt
00:00:02] [%clk 00:03:02]} Bc5 {[%emt 00:00:01] [%clk 00:03:05]} 4. d3 {[%emt
00:00:06] [%clk 00:02:58]} Nf6 {[%emt 00:00:02] [%clk 00:03:06]} 5. O-O {[%emt
00:00:02] [%clk 00:02:58]} d6 {[%emt 00:00:03] [%clk 00:03:06]} 6. c3 {[%emt
00:00:05] [%clk 00:02:55]} Bb6 {[%emt 00:00:17] [%clk 00:02:50]} 7. a4 {[%emt
00:00:05] [%clk 00:02:52]} h6 {[%emt 00:00:21] [%clk 00:02:32]} 8. Nbd2 {[%emt
00:00:10] [%clk 00:02:43]} a5 {[%emt 00:00:14] [%clk 00:02:20]} 9. Ba2 {[%emt
00:00:12] [%clk 00:02:33]} O-O {[%emt 00:00:03] [%clk 00:02:19]} 10. Nc4 {[%emt
00:00:03] [%clk 00:02:32]} Ba7 {[%emt 00:00:01] [%clk 00:02:20]} 11. Be3 {[%emt
00:00:02] [%clk 00:02:33]} Be6 {[%emt 00:00:13] [%clk 00:02:08]} 12. Bxa7 {[%emt
00:00:04] [%clk 00:02:31]} Rxa7 {[%emt 00:00:02] [%clk 00:02:09]} 13. Re1 {[%emt
00:00:05] [%clk 00:02:27]} Ra8 {[%emt 00:00:07] [%clk 00:02:04]} 14. Ne3 {[%emt
00:00:14] [%clk 00:02:15]} Bxa2 {[%emt 00:00:06] [%clk 00:02:00]} 15. Rxa2
{[%emt 00:00:02] [%clk 00:02:16]} Re8 {[%emt 00:00:06] [%clk 00:01:55]} 16. h3
{[%emt 00:00:16] [%clk 00:02:03]} 1/2-1/2

[Site "Europe Echecs"]

[Event "Championnat d'Europe de Blitz"]
[Date "2024.12.09"]
[White "Deac, Bogdan-Daniel"]
[Black "Pancevski, Filip"]
[WhiteElo "2696"]
[BlackElo "2420"]
[Round "10.6"]
[Result "1-0"]
[TimeControl "180+2"]

1. Nf3 {[%emt 00:00:03] [%clk 00:03:02]} Nf6 {[%clk 00:03:04]} 2. d4 {[%emt
00:00:01] [%clk 00:03:02]} g6 {[%clk 00:03:05]} 3. e3 {[%emt 00:00:02] [%clk
00:03:03]} Bg7 {[%emt 00:00:01] [%clk 00:03:06]} 4. Be2 {[%emt 00:00:01] [%clk
00:03:03]} O-O {[%emt 00:00:02] [%clk 00:03:07]} 5. O-O {[%emt 00:00:02] [%clk
00:03:03]} d6 {[%emt 00:00:01] [%clk 00:03:08]} 6. Nc3 {[%clk 00:03:04]} Nbd7
{[%emt 00:00:05] [%clk 00:03:05]} 7. e4 {[%emt 00:00:01] [%clk 00:03:05]} e5
{[%emt 00:00:02] [%clk 00:03:05]} 8. dxe5 {[%emt 00:00:01] [%clk 00:03:06]} dxe5
{[%emt 00:00:02] [%clk 00:03:06]} 9. Bc4 {[%emt 00:00:05] [%clk 00:03:01]} c6
{[%emt 00:00:03] [%clk 00:03:06]} 10. a4 {[%emt 00:00:01] [%clk 00:03:02]} a5
{[%emt 00:00:01] [%clk 00:03:07]} 11. b3 {[%emt 00:00:08] [%clk 00:02:56]} Qe7
{[%emt 00:00:27] [%clk 00:02:43]} 12. Ba3 {[%emt 00:00:18] [%clk 00:02:39]} Nc5
{[%emt 00:00:01] [%clk 00:02:44]} 13. Qd2 {[%emt 00:00:12] [%clk 00:02:28]} Bg4
{[%emt 00:00:57] [%clk 00:01:50]} 14. Qe3 {[%emt 00:00:13] [%clk 00:02:17]} Nfd7
{[%emt 00:00:10] [%clk 00:01:42]} 15. Ne1 {[%emt 00:00:46] [%clk 00:01:32]} b6
{[%emt 00:00:14] [%clk 00:01:31]} 16. Nd3 {[%emt 00:00:05] [%clk 00:01:28]} Rfd8
{[%emt 00:00:28] [%clk 00:01:05]} 17. h3 {[%emt 00:00:26] [%clk 00:01:05]} Be6
{[%clk 00:01:07]} 18. Bxe6 {[%emt 00:00:07] [%clk 00:01:00]} Qxe6 {[%emt
00:00:05] [%clk 00:01:04]} 19. Nxc5 {[%emt 00:00:12] [%clk 00:00:50]} Nxc5
{[%emt 00:00:01] [%clk 00:01:05]} 20. Bxc5 {[%emt 00:00:08] [%clk 00:00:43]}
bxc5 {[%clk 00:01:07]} 21. Qxc5 {[%emt 00:00:09] [%clk 00:00:36]} Rd4 {[%emt
00:00:18] [%clk 00:00:51]} 22. Rad1 {[%emt 00:00:14] [%clk 00:00:24]} Bf8 {[%emt
00:00:27] [%clk 00:00:26]} 23. Qb6 {[%emt 00:00:01] [%clk 00:00:25]} Qd7 {[%emt
00:00:14] [%clk 00:00:14]} 24. Rxd4 {[%emt 00:00:12] [%clk 00:00:15]} exd4
{[%emt 00:00:07] [%clk 00:00:09]} 25. Rd1 {[%emt 00:00:06] [%clk 00:00:11]} Bg7
{[%clk 00:00:10]} 26. Ne2 {[%emt 00:00:03] [%clk 00:00:10]} Qe6 {[%emt 00:00:08]
[%clk 00:00:04]} 27. Ng3 {[%emt 00:00:07] [%clk 00:00:05]} h5 {[%emt 00:00:03]
[%clk 00:00:04]} 28. Qc5 {[%emt 00:00:02] [%clk 00:00:05]} h4 {[%emt 00:00:02]
[%clk 00:00:04]} 29. Nf1 {[%emt 00:00:01] [%clk 00:00:05]} Qxe4 {[%clk
00:00:05]} 30. Qc4 {[%emt 00:00:02] [%clk 00:00:05]} Re8 {[%emt 00:00:02] [%clk
00:00:05]} 31. Nd2 {[%clk 00:00:06]} Qe2 {[%emt 00:00:01] [%clk 00:00:06]} 32.
Qxe2 {[%emt 00:00:01] [%clk 00:00:07]} Rxe2 {[%clk 00:00:07]} 33. Kf1 {[%clk
00:00:08]} Re5 {[%emt 00:00:03] [%clk 00:00:06]} 34. Nc4 {[%emt 00:00:03] [%clk
00:00:07]} Rd5 {[%emt 00:00:01] [%clk 00:00:06]} 35. Rd3 {[%emt 00:00:05] [%clk
00:00:05]} Bf8 {[%emt 00:00:01] [%clk 00:00:08]} 36. Rf3 {[%emt 00:00:02] [%clk
00:00:04]} f5 {[%emt 00:00:05] [%clk 00:00:05]} 37. Rd3 {[%emt 00:00:02] [%clk
00:00:04]} Bb4 {[%clk 00:00:06]} 38. g3 {[%emt 00:00:02] [%clk 00:00:04]} hxg3
{[%emt 00:00:02] [%clk 00:00:06]} 39. Rxg3 {[%clk 00:00:05]} Kf7 {[%emt
00:00:01] [%clk 00:00:07]} 40. f4 {[%emt 00:00:03] [%clk 00:00:05]} Bd6 {[%emt
00:00:03] [%clk 00:00:06]} 41. Rf3 {[%clk 00:00:06]} Kf6 {[%clk 00:00:08]} 42.
Ke2 {[%emt 00:00:01] [%clk 00:00:06]} Bb4 {[%emt 00:00:02] [%clk 00:00:08]} 43.
Kd3 {[%emt 00:00:02] [%clk 00:00:06]} Bc3 {[%emt 00:00:01] [%clk 00:00:09]} 44.
Rg3 {[%emt 00:00:02] [%clk 00:00:06]} Be1 {[%emt 00:00:03] [%clk 00:00:07]} 45.
Rg2 {[%emt 00:00:02] [%clk 00:00:06]} Rd8 {[%emt 00:00:04] [%clk 00:00:06]} 46.
Ne5 {[%emt 00:00:01] [%clk 00:00:07]} Rg8 {[%emt 00:00:03] [%clk 00:00:06]} 47.
Nxc6 {[%emt 00:00:02] [%clk 00:00:06]} Rh8 {[%emt 00:00:02] [%clk 00:00:07]} 48.
Ne5 {[%emt 00:00:02] [%clk 00:00:05]} Rxh3+ {[%clk 00:00:08]} 49. Kc4 {[%emt
00:00:01] [%clk 00:00:06]} Rg3 {[%emt 00:00:02] [%clk 00:00:08]} 50. Rxg3 {[%emt
00:00:03] [%clk 00:00:05]} Bxg3 {[%clk 00:00:09]} 51. Nd3 {[%emt 00:00:01] [%clk
00:00:06]} g5 {[%emt 00:00:05] [%clk 00:00:06]} 52. b4 {[%emt 00:00:02] [%clk
00:00:06]} axb4 {[%clk 00:00:07]} 53. a5 {[%emt 00:00:01] [%clk 00:00:07]} gxf4
{[%clk 00:00:07]} 54. a6 {[%emt 00:00:01] [%clk 00:00:09]} f3 {[%emt 00:00:01]
[%clk 00:00:08]} 55. a7 {[%clk 00:00:10]} f2 {[%emt 00:00:01] [%clk 00:00:09]}
56. Nxf2 {[%emt 00:00:01] [%clk 00:00:11]} b3 {[%emt 00:00:01] [%clk 00:00:10]}
57. cxb3 {[%emt 00:00:04] [%clk 00:00:09]} Bxf2 {[%clk 00:00:11]} 58. a8=Q
{[%emt 00:00:02] [%clk 00:00:09]} 1-0

[Site "Europe Echecs"]

[Event "Championnat d'Europe de Blitz"]
[Date "2024.12.09"]
[White "Muradli, Mahammad"]
[Black "Hamitevici, Vladimir"]
[WhiteElo "2588"]
[BlackElo "2423"]
[Round "10.8"]
[Result "1-0"]
[TimeControl "180+2"]

1. Nf3 {[%emt 00:04:26] [%clk 00:03:02]} Nf6 {[%emt 00:00:04] [%clk 00:03:00]}
2. c4 {[%emt 00:00:01] [%clk 00:03:03]} b6 {[%emt 00:00:01] [%clk 00:03:01]} 3.
g3 {[%emt 00:00:02] [%clk 00:03:04]} Bb7 {[%emt 00:00:01] [%clk 00:03:02]} 4. d4
{[%clk 00:03:05]} g6 {[%emt 00:00:01] [%clk 00:03:02]} 5. d5 {[%emt 00:00:01]
[%clk 00:03:06]} Bg7 {[%emt 00:00:06] [%clk 00:02:58]} 6. Nc3 {[%emt 00:00:01]
[%clk 00:03:07]} O-O {[%emt 00:00:09] [%clk 00:02:51]} 7. Bg2 {[%emt 00:00:01]
[%clk 00:03:08]} e6 {[%emt 00:00:01] [%clk 00:02:53]} 8. O-O {[%emt 00:00:02]
[%clk 00:03:07]} Na6 {[%emt 00:00:02] [%clk 00:02:54]} 9. Re1 {[%emt 00:00:13]
[%clk 00:02:56]} exd5 {[%emt 00:00:23] [%clk 00:02:33]} 10. cxd5 {[%emt
00:00:01] [%clk 00:02:57]} c5 {[%clk 00:02:34]} 11. e4 {[%emt 00:00:17] [%clk
00:02:41]} d6 {[%emt 00:00:02] [%clk 00:02:33]} 12. e5 {[%emt 00:00:14] [%clk
00:02:31]} dxe5 {[%emt 00:00:04] [%clk 00:02:31]} 13. Nxe5 {[%emt 00:00:01]
[%clk 00:02:31]} Nb4 {[%emt 00:00:14] [%clk 00:02:19]} 14. Bg5 {[%emt 00:00:27]
[%clk 00:02:06]} h6 {[%emt 00:00:01] [%clk 00:02:20]} 15. Bxf6 {[%clk 00:02:07]}
Bxf6 {[%emt 00:00:03] [%clk 00:02:20]} 16. a3 {[%clk 00:02:09]} Bxe5 {[%emt
00:00:21] [%clk 00:02:01]} 17. Rxe5 {[%emt 00:00:10] [%clk 00:02:01]} Qf6 {[%emt
00:00:02] [%clk 00:02:00]} 18. f4 {[%emt 00:00:12] [%clk 00:01:51]} Na6 {[%emt
00:00:16] [%clk 00:01:47]} 19. Ne4 {[%emt 00:00:04] [%clk 00:01:48]} Qg7 {[%emt
00:00:01] [%clk 00:01:48]} 20. Nd6 {[%emt 00:00:17] [%clk 00:01:34]} Rab8 {[%emt
00:01:16] [%clk 00:00:33]} 21. Qa4 {[%clk 00:01:36]} b5 {[%emt 00:00:12] [%clk
00:00:25]} 22. Nxb5 {[%emt 00:01:01] [%clk 00:00:36]} Rfd8 {[%emt 00:00:08]
[%clk 00:00:18]} 23. Rae1 {[%emt 00:00:02] [%clk 00:00:36]} Qf6 {[%emt 00:00:04]
[%clk 00:00:17]} 24. Nc3 {[%emt 00:00:02] [%clk 00:00:35]} Qb6 {[%emt 00:00:04]
[%clk 00:00:15]} 25. R1e2 {[%emt 00:00:02]} Nc7 {[%emt 00:00:11] [%clk
00:00:05]} 26. Qc2 {[%emt 00:00:18] [%clk 00:00:22]} Bc8 {[%clk 00:00:07]} 27.
h3 {[%emt 00:00:08] [%clk 00:00:15]} Bf5 {[%emt 00:00:03] [%clk 00:00:06]} 28.
Qc1 {[%emt 00:00:03] [%clk 00:00:14]} c4+ {[%emt 00:00:03] [%clk 00:00:06]} 29.
Kh2 {[%emt 00:00:01] [%clk 00:00:15]} Nb5 {[%clk 00:00:08]} 30. Nxb5 {[%emt
00:00:04] [%clk 00:00:13]} Qxb5 {[%clk 00:00:09]} 31. Qc3 {[%emt 00:00:02] [%clk
00:00:13]} Qb3 {[%emt 00:00:07] [%clk 00:00:04]} 32. Qd4 {[%emt 00:00:03] [%clk
00:00:12]} Bd3 {[%emt 00:00:02] [%clk 00:00:04]} 33. Rd2 {[%emt 00:00:09] [%clk
00:00:07]} Qb6 34. Qc3 {[%clk 00:00:06]} Qb3 {[%emt 00:00:02] [%clk 00:00:06]}
35. Qc1 {[%emt 00:00:05] [%clk 00:00:04]} Rd7 {[%emt 00:00:02] [%clk 00:00:06]}
36. Qe1 {[%clk 00:00:05]} Kg7 {[%emt 00:00:02] [%clk 00:00:06]} 37. h4 {[%emt
00:00:01] [%clk 00:00:06]} h5 {[%emt 00:00:01] [%clk 00:00:07]} 38. Re3 {[%emt
00:00:01] [%clk 00:00:07]} Qb6 {[%emt 00:00:02] [%clk 00:00:08]} 39. Re7 {[%emt
00:00:03] [%clk 00:00:05]} Rxe7 {[%emt 00:00:09] [%clk 00:00:00]} 1-0

[Site "Europe Echecs"]